[Event "48th Indian U15-ch Girls 2023"]
[Site "Jalgaon"]
[Date "2024.01.03"]
[Round "10.4"]
[White "Anupam M Sreekumar"]
[Black "Sherali Pattnaik"]
[Result "0-1"]
[ECO "C04"]
[WhiteElo "1642"]
[BlackElo "1575"]
[Annotator "NA RC"]
[PlyCount "108"]
[EventDate "2023.12.30"]
[EventType "swiss"]
[EventCountry "IND"]
[SourceTitle "playchess.com"]
[Source "ChessBase"]
[SourceQuality "1"]
[TimeControl "5400+30"]

1. e4 {[%emt 0:00:20]} e6 {[%emt 0:01:49]} 2. d4 {[%emt 0:00:27]} d5 {[%emt 0:00:03]} 3. Nd2 {[%emt 0:00:37]} Nc6 {[%emt 0:00:15]} 4. c3 {[%emt 0:02:51]} Nf6 {[%emt 0:00:35]} 5. e5 {[%emt 0:00:49]} Nd7 {[%emt 0:00:13]} 6. f4 {[%emt 0:01:12]} g6 {[%emt 0:05:32]} 7. Ndf3 {[%emt 0:02:52]} Bg7 {[%emt 0:03:25]} 8. Bd3 {[%emt 0:01:26]} Ne7 {[%emt 0:02:55]} 9. Ne2 {[%emt 0:03:24]} Nf5 {[%emt 0:03:22]} 10. g4 {[%emt 0:06:03]} Ne7 {[%emt 0:10:13]} 11. Ng3 {[%emt 0:03:29]} c5 {[%emt 0:02:46]} 12. f5 {[%emt 0:11:25]} f6 {[%emt 0:09:37]} 13. exf6 {[%emt 0:13:46]} Nxf6 {[%emt 0:00:36]} 14. g5 {[%emt 0:00:36]} exf5 {[%emt 0:00:19]} 15. gxf6 {[%emt 0:00:47]} Bxf6 {[%emt 0:00:04]} 16. Bb5+ {[%emt 0:04:28]} Bd7 {[%emt 0:00:21]} 17. Qe2 {[%emt 0:07:14]} cxd4 {[%emt 0:01:33]} 18. Qe6 {[%emt 0:11:02]} Rf8 {[%emt 0:02:17]} 19. Bh6 {[%emt 0:04:14]} Rf7 {[%emt 0:00:30]} 20. Nxf5 {[%emt 0:04:10]} Bxb5 {[%emt 0:12:30]} 21. Nd6+ {[%emt 0:03:36]} Qxd6 {[%emt 0:00:08]} 22. Qxd6 {[%emt 0:00:02]} dxc3 {[%emt 0:01:15]} 23. Qb4 {[%emt 0:04:38]} a6 {[%emt 0:00:41]} 24. bxc3 {[%emt 0:01:21]} Rc8 {[%emt 0:01:12]} 25. Rc1 {[%emt 0:07:00]} Nf5 {[%emt 0:00:02]} 26. Bf4 {[%emt 0:03:55]} Re7+ {[%emt 0:01:27]} 27. Kd2 {[%emt 0:00:41]} Rc4 {[%emt 0:00:28]} 28. Qxe7+ {[%emt 0:01:25]} Bxe7 {[%emt 0:01:06]} 29. Be5 {[%emt 0:00:19]} Bc5 {[%emt 0:02:08]} 30. Rhe1 {[%emt 0:00:36]} Re4 {[%emt 0:00:02]} 31. Bd4 {[%emt 0:00:31]} Bd6 {[%emt 0:01:51]} 32. Rxe4+ {[%emt 0:00:36]} dxe4 {[%emt 0:00:59]} 33. Ne5 {[%emt 0:00:29]} e3+ {[%emt 0:01:28]} 34. Kc2 {[%emt 0:00:14]} Nxd4+ {[%emt 0:04:55]} 35. cxd4 {[%emt 0:00:02]} Bxe5 {[%emt 0:00:01]} 36. dxe5 {[%emt 0:00:04]} Bc4 {[%emt 0:00:44]} 37. Kc3 {[%emt 0:01:42]} b5 {[%emt 0:00:51]} 38. a3 {[%emt 0:00:30]} Ke7 {[%emt 0:00:22]} 39. Kd4 {[%emt 0:00:35]} e2 {[%emt 0:00:11]} 40. Re1 {[%emt 0:00:27]} Ke6 {[%emt 0:00:08]} 41. Rc1 {[%emt 0:00:24]} g5 {[%emt 0:00:22]} 42. Rg1 {[%emt 0:00:34]} h5 {[%emt 0:00:13]} 43. Re1 {[%emt 0:00:34]} g4 {[%emt 0:00:09]} 44. Ke4 {[%emt 0:00:06]} h4 {[%emt 0:00:10]} 45. Kf4 {[%emt 0:00:51]} g3 {[%emt 0:00:01]} 46. hxg3 {[%emt 0:00:10]} hxg3 {[%emt 0:00:01]} 47. Ke4 {[%emt 0:00:44]} g2 {[%emt 0:00:12]} 48. Kf4 {[%emt 0:00:35]} a5 {[%emt 0:00:20]} 49. Ke4 {[%emt 0:00:32]} b4 {[%emt 0:00:07]} 50. axb4 {[%emt 0:00:05]} axb4 {[%emt 0:00:01]} 51. Kd4 {[%emt 0:00:00]} Bb3 {[%emt 0:00:39]} 52. Kd3 {[%emt 0:01:17]} Bd1 {[%emt 0:00:06]} 53. Kd4 {[%emt 0:00:30]} b3 {[%emt 0:00:04]} 54. Kc3 {[%emt 0:00:40]} Kxe5 {[%emt 0:00:04]} 0-1

[Event "48th Indian U15-ch Girls 2023"]
[Site "Jalgaon"]
[Date "2024.01.03"]
[Round "10.5"]
[White "Aamuktha Guntaka"]
[Black "Nivedita V C"]
[Result "1/2-1/2"]
[ECO "C53"]
[WhiteElo "1532"]
[BlackElo "1638"]
[Annotator "NA RC"]
[PlyCount "119"]
[EventDate "2023.12.30"]
[EventType "swiss"]
[EventCountry "IND"]
[SourceTitle "playchess.com"]
[Source "ChessBase"]
[SourceQuality "1"]
[TimeControl "5400+30"]

1. e4 {[%emt 0:00:53]} e5 {[%emt 0:00:02]} 2. Nf3 {[%emt 0:00:07]} Nc6 {[%emt 0:00:03]} 3. Bc4 {[%emt 0:00:07]} Bc5 {[%emt 0:00:06]} 4. c3 {[%emt 0:00:05]} Qe7 {[%emt 0:00:08]} 5. d4 {[%emt 0:00:21]} Bb6 {[%emt 0:00:04]} 6. Bg5 {[%emt 0:01:22]} Nf6 {[%emt 0:00:06]} 7. d5 {[%emt 0:00:46]} Nb8 {[%emt 0:00:06]} 8. Bd3 {[%emt 0:01:20]} d6 {[%emt 0:01:37]} 9. Nbd2 {[%emt 0:02:11]} h6 {[%emt 0:00:32]} 10. Bxf6 {[%emt 0:00:35]} Qxf6 {[%emt 0:01:32]} 11. Nc4 {[%emt 0:05:45]} Nd7 {[%emt 0:01:06]} 12. b4 {[%emt 0:03:51]} O-O {[%emt 0:02:12]} 13. O-O {[%emt 0:01:53]} Re8 {[%emt 0:01:43]} 14. Nfd2 {[%emt 0:08:34]} a6 {[%emt 0:03:31]} 15. Nxb6 {[%emt 0:06:27]} Nxb6 {[%emt 0:00:04]} 16. c4 {[%emt 0:02:08]} Nd7 {[%emt 0:00:57]} 17. Rc1 {[%emt 0:01:43]} Nf8 {[%emt 0:03:39]} 18. c5 {[%emt 0:03:26]} Ng6 {[%emt 0:00:28]} 19. Re1 {[%emt 0:05:21]} Nf4 {[%emt 0:05:11]} 20. Bf1 {[%emt 0:00:13]} a5 {[%emt 0:01:06]} 21. a3 {[%emt 0:03:31]} axb4 {[%emt 0:00:42]} 22. axb4 {[%emt 0:00:06]} Ra2 {[%emt 0:02:54]} 23. Rc2 {[%emt 0:03:22]} Qg6 {[%emt 0:05:56]} 24. g3 {[%emt 0:09:04]} Rxc2 {[%emt 0:00:50]} 25. Qxc2 {[%emt 0:00:08]} Nh3+ {[%emt 0:02:27]} 26. Bxh3 {[%emt 0:00:24]} Bxh3 {[%emt 0:00:03]} 27. Qa4 {[%emt 0:06:24]} Rf8 {[%emt 0:02:36]} 28. Nc4 {[%emt 0:01:55]} f5 {[%emt 0:08:12]} 29. cxd6 {[%emt 0:03:22]} fxe4 {[%emt 0:02:08]} 30. dxc7 {[%emt 0:05:39]} b5 {[%emt 0:02:28]} 31. Qxb5 {[%emt 0:04:47]} Qf5 {[%emt 0:00:24]} 32. Qc5 {[%emt 0:04:26]} Qf3 {[%emt 0:00:47]} 33. Qxf8+ {[%emt 0:00:25]} Kxf8 {[%emt 0:02:57]} 34. Ne3 {[%emt 0:00:38]} Bc8 {[%emt 0:03:31]} 35. d6 {[%emt 0:04:44]} Ke8 {[%emt 0:05:50]} 36. b5 {[%emt 0:04:52]} Qf7 {[%emt 0:01:11]} 37. Rd1 {[%emt 0:01:35]} Qb3 {[%emt 0:04:08]} 38. d7+ {[%emt 0:01:15]} Bxd7 {[%emt 0:00:07]} 39. Rd5 {[%emt 0:00:26]} Bh3 {[%emt 0:04:01]} 40. Rd8+ {[%emt 0:03:09]} Ke7 {[%emt 0:01:13]} 41. g4 {[%emt 0:00:33]} Qb1+ {[%emt 0:04:55]} 42. Rd1 {[%emt 0:00:15]} Qxd1+ {[%emt 0:02:06]} 43. Nxd1 {[%emt 0:00:07]} Bxg4 {[%emt 0:00:11]} 44. Ne3 {[%emt 0:00:48]} Be6 {[%emt 0:00:36]} 45. b6 {[%emt 0:00:37]} Kd7 {[%emt 0:00:08]} 46. Kg2 {[%emt 0:01:14]} Kc8 {[%emt 0:04:14]} 47. f3 {[%emt 0:00:59]} Kb7 {[%emt 0:00:43]} 48. fxe4 {[%emt 0:00:10]} Kxb6 {[%emt 0:00:04]} 49. Nc4+ {[%emt 0:01:26]} Kxc7 {[%emt 0:00:05]} 50. Nxe5 {[%emt 0:00:15]} Kd6 {[%emt 0:00:06]} 51. Nd3 {[%emt 0:00:55]} Bc4 {[%emt 0:00:13]} 52. Nb2 {[%emt 0:00:44]} Bb5 {[%emt 0:00:07]} 53. Kf3 {[%emt 0:00:15]} Ke5 {[%emt 0:00:10]} 54. Ke3 {[%emt 0:00:19]} g5 {[%emt 0:00:04]} 55. Nd1 {[%emt 0:00:14]} h5 {[%emt 0:00:08]} 56. Nf2 {[%emt 0:00:46]} g4 {[%emt 0:00:11]} 57. Nh1 {[%emt 0:00:31]} Bc6 {[%emt 0:00:55]} 58. Ng3 {[%emt 0:00:31]} Be8 {[%emt 0:00:11]} 59. Ne2 {[%emt 0:00:40]} h4 {[%emt 0:00:20]} 60. Nf4 {[%emt 0:00:32]} 1/2-1/2

[Event "48th Indian U15-ch Girls 2023"]
[Site "Jalgaon"]
[Date "2024.01.03"]
[Round "10.6"]
[White "Arshiya Das"]
[Black "Yashvi Jain"]
[Result "0-1"]
[ECO "C47"]
[WhiteElo "1729"]
[BlackElo "1442"]
[Annotator "NA RC"]
[PlyCount "138"]
[EventDate "2023.12.30"]
[EventType "swiss"]
[EventCountry "IND"]
[SourceTitle "playchess.com"]
[Source "ChessBase"]
[SourceQuality "1"]
[TimeControl "5400+30"]

1. e4 {[%emt 0:00:02]} e5 {[%emt 0:01:15]} 2. Nf3 {[%emt 0:00:05]} Nc6 {[%emt 0:00:12]} 3. Nc3 {[%emt 0:00:05]} Nf6 {[%emt 0:00:11]} 4. d4 {[%emt 0:00:03]} exd4 {[%emt 0:00:13]} 5. Nxd4 {[%emt 0:00:04]} Bb4 {[%emt 0:00:26]} 6. Nxc6 {[%emt 0:00:04]} bxc6 {[%emt 0:00:07]} 7. Bd3 {[%emt 0:00:02]} d5 {[%emt 0:00:27]} 8. exd5 {[%emt 0:00:05]} cxd5 {[%emt 0:00:19]} 9. O-O {[%emt 0:00:08]} O-O {[%emt 0:00:20]} 10. h3 {[%emt 0:00:06]} h6 {[%emt 0:00:47]} 11. Bf4 {[%emt 0:02:39]} c6 {[%emt 0:00:31]} 12. Qf3 {[%emt 0:00:34]} Be6 {[%emt 0:00:38]} 13. Ne2 {[%emt 0:01:11]} Bc5 {[%emt 0:03:28]} 14. Ng3 {[%emt 0:03:36]} Re8 {[%emt 0:03:59]} 15. Rae1 {[%emt 0:02:38]} Bd6 {[%emt 0:02:35]} 16. Be3 {[%emt 0:17:10]} Nd7 {[%emt 0:01:11]} 17. Nh5 {[%emt 0:10:19]} Qh4 {[%emt 0:04:25]} 18. Bf4 {[%emt 0:03:58]} Bxf4 {[%emt 0:03:25]} 19. Nxf4 {[%emt 0:00:05]} Nc5 {[%emt 0:01:32]} 20. Nxe6 {[%emt 0:08:08]} Nxe6 {[%emt 0:00:47]} 21. c3 {[%emt 0:02:00]} Rab8 {[%emt 0:03:12]} 22. b3 {[%emt 0:02:06]} Qg5 {[%emt 0:02:37]} 23. Bb1 {[%emt 0:07:22]} Re7 {[%emt 0:11:05]} 24. Kh1 {[%emt 0:08:40]} Rbe8 {[%emt 0:01:03]} 25. g3 {[%emt 0:01:54]} Nc5 {[%emt 0:04:42]} 26. Rxe7 {[%emt 0:01:15]} Rxe7 {[%emt 0:01:59]} 27. Kg2 {[%emt 0:01:28]} Ne4 {[%emt 0:05:43]} 28. h4 {[%emt 0:03:54]} Qe5 {[%emt 0:11:12]} 29. Re1 {[%emt 0:01:09]} f5 {[%emt 0:00:18]} 30. c4 {[%emt 0:03:05]} d4 {[%emt 0:02:18]} 31. h5 {[%emt 0:03:10]} Qa5 {[%emt 0:04:53]} 32. Rh1 {[%emt 0:02:41]} Re5 {[%emt 0:06:20]} 33. Qd3 {[%emt 0:02:18]} c5 {[%emt 0:05:06]} 34. Qe2 {[%emt 0:02:18]} Qc7 {[%emt 0:00:53]} 35. Re1 {[%emt 0:00:13]} Re6 {[%emt 0:01:38]} 36. Qf3 {[%emt 0:00:48]} Qc6 {[%emt 0:02:24]} 37. Rh1 {[%emt 0:01:40]} Re5 {[%emt 0:02:54]} 38. Re1 {[%emt 0:03:01]} Qb7 {[%emt 0:02:00]} 39. Bc2 {[%emt 0:01:53]} Qb4 {[%emt 0:03:56]} 40. Qe2 {[%emt 0:00:20]} Re6 {[%emt 0:00:57]} 41. Rh1 {[%emt 0:01:12]} Ng5 {[%emt 0:01:38]} 42. Qd1 {[%emt 0:00:52]} Qb7+ {[%emt 0:00:01]} 43. f3 {[%emt 0:00:39]} Re3 {[%emt 0:00:54]} 44. Rf1 {[%emt 0:01:09]} Qf7 {[%emt 0:02:33]} 45. Bxf5 {[%emt 0:01:59]} Qxf5 {[%emt 0:00:00]} 46. g4 {[%emt 0:00:02]} Qd3 {[%emt 0:00:00]} 47. Qxd3 {[%emt 0:00:43]} Rxd3 {[%emt 0:00:00]} 48. Rf2 {[%emt 0:00:03]} Re3 {[%emt 0:00:00]} 49. f4 {[%emt 0:00:39]} Ne4 {[%emt 0:00:00]} 50. Rb2 {[%emt 0:00:02]} d3 {[%emt 0:00:00]} 51. Kf1 {[%emt 0:00:03]} d2 {[%emt 0:00:00]} 52. Rb1 {[%emt 0:00:03]} Nc3 {[%emt 0:00:05]} 53. Ra1 {[%emt 0:00:04]} d1=Q+ {[%emt 0:00:08]} 54. Rxd1 {[%emt 0:00:03]} Nxd1 {[%emt 0:00:07]} 55. Kg2 {[%emt 0:00:02]} Re2+ {[%emt 0:00:09]} 56. Kf1 {[%emt 0:00:03]} Rxa2 {[%emt 0:00:10]} 57. Ke1 {[%emt 0:00:01]} Ne3 {[%emt 0:00:21]} 58. g5 {[%emt 0:01:27]} Kf7 {[%emt 0:00:27]} 59. gxh6 {[%emt 0:00:03]} gxh6 {[%emt 0:00:06]} 60. f5 {[%emt 0:00:02]} Kf6 {[%emt 0:00:21]} 61. b4 {[%emt 0:00:02]} cxb4 {[%emt 0:00:06]} 62. c5 {[%emt 0:00:02]} b3 {[%emt 0:00:35]} 63. c6 {[%emt 0:00:01]} b2 {[%emt 0:00:17]} 64. Ke2 {[%emt 0:00:02]} b1=Q+ {[%emt 0:00:09]} 65. Kxe3 {[%emt 0:00:02]} Qb3+ {[%emt 0:00:14]} 66. Kd4 {[%emt 0:00:08]} Rd2+ {[%emt 0:00:27]} 67. Kc5 {[%emt 0:00:02]} Qc3+ {[%emt 0:00:14]} 68. Kb5 {[%emt 0:00:01]} Rb2+ {[%emt 0:00:08]} 69. Ka6 {[%emt 0:00:01]} Qa3# {[%emt 0:00:09]} 0-1

[Event "48th Indian U15-ch Girls 2023"]
[Site "Jalgaon"]
[Date "2024.01.03"]
[Round "10.7"]
[White "Arya G Mallar"]
[Black "Hanya Shah"]
[Result "0-1"]
[ECO "A47"]
[WhiteElo "1460"]
[BlackElo "1429"]
[Annotator "NA RC"]
[PlyCount "74"]
[EventDate "2023.12.30"]
[EventType "swiss"]
[EventCountry "IND"]
[SourceTitle "playchess.com"]
[Source "ChessBase"]
[SourceQuality "1"]
[TimeControl "5400+30"]

1. Nf3 {[%emt 0:00:20]} Nf6 {[%emt 0:00:21]} 2. b3 {[%emt 0:00:07]} e6 {[%emt 0:01:07]} 3. Bb2 {[%emt 0:00:08]} d5 {[%emt 0:01:51]} 4. e3 {[%emt 0:00:08]} Bd6 {[%emt 0:00:35]} 5. d4 {[%emt 0:00:44]} b6 {[%emt 0:00:56]} 6. Be2 {[%emt 0:00:16]} Bb7 {[%emt 0:00:26]} 7. O-O {[%emt 0:00:12]} Nbd7 {[%emt 0:00:48]} 8. Nbd2 {[%emt 0:00:21]} O-O {[%emt 0:00:28]} 9. c4 {[%emt 0:00:14]} Re8 {[%emt 0:01:51]} 10. Ne5 {[%emt 0:04:18]} Ne4 {[%emt 0:10:19]} 11. Nxe4 {[%emt 0:06:49]} dxe4 {[%emt 0:00:29]} 12. Nxd7 {[%emt 0:04:13]} Qxd7 {[%emt 0:01:10]} 13. Qc2 {[%emt 0:00:56]} Qe7 {[%emt 0:04:31]} 14. Rac1 {[%emt 0:03:32]} c5 {[%emt 0:01:43]} 15. Rfd1 {[%emt 0:04:58]} f5 {[%emt 0:02:36]} 16. dxc5 {[%emt 0:06:16]} bxc5 {[%emt 0:01:23]} 17. Qc3 {[%emt 0:01:03]} Rad8 {[%emt 0:02:05]} 18. Rd2 {[%emt 0:06:06]} Rd7 {[%emt 0:02:12]} 19. Rcd1 {[%emt 0:02:10]} Red8 {[%emt 0:01:37]} 20. Qc1 {[%emt 0:10:11]} e5 {[%emt 0:04:33]} 21. Qa1 {[%emt 0:04:02]} Bc6 {[%emt 0:04:13]} 22. Bc3 {[%emt 0:01:14]} Rf8 {[%emt 0:05:01]} 23. Qb2 {[%emt 0:07:05]} Rf6 {[%emt 0:04:20]} 24. a3 {[%emt 0:04:36]} Rh6 {[%emt 0:15:53]} 25. b4 {[%emt 0:12:26]} f4 {[%emt 0:12:51]} 26. Bg4 {[%emt 0:06:10]} Rb7 {[%emt 0:04:14]} 27. Rxd6 {[%emt 0:01:58]} Rxd6 {[%emt 0:00:36]} 28. Rxd6 {[%emt 0:00:05]} Qxd6 {[%emt 0:01:04]} 29. Bxe5 {[%emt 0:00:06]} Qg6 {[%emt 0:00:35]} 30. Bc8 {[%emt 0:02:37]} f3 {[%emt 0:01:17]} 31. Bg3 {[%emt 0:03:24]} Rb8 {[%emt 0:00:59]} 32. Ba6 {[%emt 0:04:16]} Rd8 {[%emt 0:00:34]} 33. h3 {[%emt 0:00:05]} Rd1+ {[%emt 0:02:06]} 34. Kh2 {[%emt 0:00:01]} fxg2 {[%emt 0:00:01]} 35. Kxg2 {[%emt 0:00:11]} Qh5 {[%emt 0:00:21]} 36. Qe5 {[%emt 0:03:54]} Qf3+ {[%emt 0:00:37]} 37. Kh2 {[%emt 0:00:05]} Rh1# {[%emt 0:00:12]} 0-1

[Event "48th Indian U15-ch Girls 2023"]
[Site "Jalgaon"]
[Date "2024.01.03"]
[Round "10.8"]
[White "Saparya Ghosh"]
[Black "Lakshanaa R"]
[Result "1-0"]
[ECO "E59"]
[WhiteElo "1662"]
[BlackElo "1386"]
[Annotator "NA RC"]
[PlyCount "97"]
[EventDate "2023.12.30"]
[EventType "swiss"]
[EventCountry "IND"]
[SourceTitle "playchess.com"]
[Source "ChessBase"]
[SourceQuality "1"]
[TimeControl "5400+30"]

1. d4 {[%emt 0:01:35]} Nf6 {[%emt 0:00:14]} 2. c4 {[%emt 0:00:03]} e6 {[%emt 0:00:06]} 3. Nc3 {[%emt 0:00:05]} Bb4 {[%emt 0:00:08]} 4. e3 {[%emt 0:00:07]} O-O {[%emt 0:00:07]} 5. Bd3 {[%emt 0:00:11]} c5 {[%emt 0:00:11]} 6. Nf3 {[%emt 0:00:26]} d5 {[%emt 0:00:58]} 7. O-O {[%emt 0:00:09]} Nc6 {[%emt 0:00:11]} 8. a3 {[%emt 0:01:59]} Bxc3 {[%emt 0:00:19]} 9. bxc3 {[%emt 0:00:07]} dxc4 {[%emt 0:00:48]} 10. Bxc4 {[%emt 0:00:08]} Qc7 {[%emt 0:00:38]} 11. Qe2 {[%emt 0:00:49]} e5 {[%emt 0:08:32]} 12. d5 {[%emt 0:08:31]} Na5 {[%emt 0:00:52]} 13. e4 {[%emt 0:00:37]} Bg4 {[%emt 0:08:02]} 14. Ba2 {[%emt 0:03:59]} h6 {[%emt 0:08:39]} 15. Rb1 {[%emt 0:04:38]} b6 {[%emt 0:01:59]} 16. h3 {[%emt 0:05:59]} Bh5 {[%emt 0:05:55]} 17. Rb2 {[%emt 0:01:17]} Nb7 {[%emt 0:02:52]} 18. Qe3 {[%emt 0:02:00]} Nd6 {[%emt 0:08:09]} 19. Nd2 {[%emt 0:00:17]} Bg6 {[%emt 0:01:56]} 20. f3 {[%emt 0:06:14]} Rfe8 {[%emt 0:09:09]} 21. Nc4 {[%emt 0:01:53]} Rad8 {[%emt 0:03:22]} 22. Qe1 {[%emt 0:01:48]} Nxc4 {[%emt 0:15:29]} 23. Bxc4 {[%emt 0:00:02]} Qd6 {[%emt 0:01:45]} 24. a4 {[%emt 0:02:14]} Rb8 {[%emt 0:11:15]} 25. Re2 {[%emt 0:02:38]} Nd7 {[%emt 0:08:03]} 26. f4 {[%emt 0:00:35]} exf4 {[%emt 0:00:32]} 27. Bxf4 {[%emt 0:00:31]} Ne5 {[%emt 0:00:11]} 28. Qg3 {[%emt 0:00:19]} Re7 {[%emt 0:01:36]} 29. Bb5 {[%emt 0:00:36]} Rd8 {[%emt 0:02:16]} 30. Kh1 {[%emt 0:00:53]} Bh5 {[%emt 0:00:31]} 31. Ree1 {[%emt 0:00:35]} Kh8 {[%emt 0:00:21]} 32. Qh4 {[%emt 0:00:53]} Bg6 {[%emt 0:00:44]} 33. Bg5 {[%emt 0:00:22]} f6 {[%emt 0:00:19]} 34. Rxf6 {[%emt 0:00:29]} gxf6 {[%emt 0:00:44]} 35. Bxf6+ {[%emt 0:00:04]} Kg8 {[%emt 0:00:21]} 36. Bxe7 {[%emt 0:00:05]} Qc7 {[%emt 0:00:09]} 37. Bxd8 {[%emt 0:00:06]} Qf7 {[%emt 0:00:21]} 38. Rf1 {[%emt 0:00:04]} Qh7 {[%emt 0:00:27]} 39. Qf6 {[%emt 0:00:07]} Nf7 {[%emt 0:00:18]} 40. e5 {[%emt 0:00:20]} Qg7 {[%emt 0:00:45]} 41. e6 {[%emt 0:00:06]} Nd6 {[%emt 0:00:12]} 42. e7 {[%emt 0:00:16]} Qxf6 {[%emt 0:00:35]} 43. Rxf6 {[%emt 0:00:02]} Ne8 {[%emt 0:00:28]} 44. Rxg6+ {[%emt 0:00:04]} Kf7 {[%emt 0:00:03]} 45. Bxe8+ {[%emt 0:00:09]} Kxe8 {[%emt 0:00:03]} 46. Rg8+ {[%emt 0:00:04]} Kd7 {[%emt 0:00:03]} 47. e8=Q+ {[%emt 0:00:09]} Kc8 {[%emt 0:00:05]} 48. Qc6+ {[%emt 0:00:05]} Kb8 {[%emt 0:00:03]} 49. Bxb6# {[%emt 0:00:07]} 1-0

[Event "48th Indian U15-ch Girls 2023"]
[Site "Jalgaon"]
[Date "2024.01.03"]
[Round "10.9"]
[White "Drishtee Ghosh"]
[Black "Dhakshniga, T."]
[Result "1-0"]
[ECO "C65"]
[WhiteElo "1605"]
[BlackElo "1416"]
[Annotator "NA RC"]
[PlyCount "131"]
[EventDate "2023.12.30"]
[EventType "swiss"]
[EventCountry "IND"]
[SourceTitle "playchess.com"]
[Source "ChessBase"]
[SourceQuality "1"]
[TimeControl "5400+30"]

1. e4 {[%emt 0:00:02]} e5 {[%emt 0:00:48]} 2. Nf3 {[%emt 0:00:06]} Nc6 {[%emt 0:00:42]} 3. Bb5 {[%emt 0:00:02]} Nf6 {[%emt 0:00:30]} 4. O-O {[%emt 0:01:00]} Bc5 {[%emt 0:00:25]} 5. c3 {[%emt 0:03:04]} O-O {[%emt 0:00:49]} 6. d4 {[%emt 0:01:52]} Bb6 {[%emt 0:02:24]} 7. Bg5 {[%emt 0:08:30]} d6 {[%emt 0:22:52]} 8. Qe2 {[%emt 0:25:54]} Qe7 {[%emt 0:12:10]} 9. Bxc6 {[%emt 0:17:36]} bxc6 {[%emt 0:00:09]} 10. Nbd2 {[%emt 0:03:18]} Bg4 {[%emt 0:07:43]} 11. dxe5 {[%emt 0:02:07]} dxe5 {[%emt 0:00:07]} 12. h3 {[%emt 0:03:02]} Bxf3 {[%emt 0:22:36]} 13. Nxf3 {[%emt 0:01:44]} Qe6 {[%emt 0:01:11]} 14. Bxf6 {[%emt 0:02:50]} Qxf6 {[%emt 0:00:08]} 15. Ne1 {[%emt 0:04:45]} Rfd8 {[%emt 0:03:33]} 16. Nd3 {[%emt 0:00:20]} Rd6 {[%emt 0:01:31]} 17. Kh1 {[%emt 0:02:18]} Rad8 {[%emt 0:03:31]} 18. Rad1 {[%emt 0:00:19]} Qe6 {[%emt 0:01:26]} 19. b3 {[%emt 0:00:48]} f6 {[%emt 0:03:38]} 20. Nb2 {[%emt 0:01:17]} Rxd1 {[%emt 0:00:58]} 21. Rxd1 {[%emt 0:00:07]} Rxd1+ {[%emt 0:00:09]} 22. Nxd1 {[%emt 0:00:15]} Qd6 {[%emt 0:00:56]} 23. Kh2 {[%emt 0:00:50]} g6 {[%emt 0:01:20]} 24. g3 {[%emt 0:01:07]} Kg7 {[%emt 0:00:55]} 25. Kg2 {[%emt 0:00:37]} Qa3 {[%emt 0:02:27]} 26. Qc2 {[%emt 0:00:59]} Kf7 {[%emt 0:03:03]} 27. Qd2 {[%emt 0:01:40]} Qd6 {[%emt 0:00:07]} 28. Qe2 {[%emt 0:01:00]} Qc5 {[%emt 0:01:22]} 29. b4 {[%emt 0:00:53]} Qd6 {[%emt 0:00:23]} 30. Nb2 {[%emt 0:00:41]} c5 {[%emt 0:02:03]} 31. Nc4 {[%emt 0:00:45]} Qc6 {[%emt 0:02:25]} 32. b5 {[%emt 0:00:39]} Qd7 {[%emt 0:00:04]} 33. a4 {[%emt 0:00:23]} a5 {[%emt 0:01:05]} 34. Ne3 {[%emt 0:05:12]} Kg7 {[%emt 0:01:15]} 35. Nd5 {[%emt 0:00:19]} Kf7 {[%emt 0:00:40]} 36. Qc4 {[%emt 0:01:15]} Kg7 {[%emt 0:00:49]} 37. f4 {[%emt 0:00:18]} Qd6 {[%emt 0:01:03]} 38. Qe2 {[%emt 0:01:19]} Kf7 {[%emt 0:00:38]} 39. Qc4 {[%emt 0:01:39]} Kg7 {[%emt 0:00:07]} 40. Kf3 {[%emt 0:00:51]} Qd7 {[%emt 0:00:59]} 41. Kg2 {[%emt 0:00:55]} Qd6 {[%emt 0:00:06]} 42. Qe2 {[%emt 0:00:04]} Kf7 {[%emt 0:00:46]} 43. c4 {[%emt 0:00:04]} Qe6 {[%emt 0:00:19]} 44. Qf3 {[%emt 0:00:46]} Kg7 {[%emt 0:00:39]} 45. h4 {[%emt 0:00:30]} Kf7 {[%emt 0:00:48]} 46. h5 {[%emt 0:00:25]} exf4 {[%emt 0:00:53]} 47. gxf4 {[%emt 0:00:33]} Kg7 {[%emt 0:00:39]} 48. hxg6 {[%emt 0:00:33]} hxg6 {[%emt 0:00:06]} 49. Kf2 {[%emt 0:00:08]} Kf7 {[%emt 0:00:23]} 50. Ke3 {[%emt 0:00:25]} Kg7 {[%emt 0:00:11]} 51. Qg3 {[%emt 0:00:22]} Kf7 {[%emt 0:00:52]} 52. Kf3 {[%emt 0:00:18]} Qd6 {[%emt 0:01:10]} 53. Qh3 {[%emt 0:00:46]} Kg7 {[%emt 0:00:08]} 54. Qg4 {[%emt 0:00:55]} Kf7 {[%emt 0:00:45]} 55. f5 {[%emt 0:00:04]} gxf5 {[%emt 0:00:17]} 56. Qxf5 {[%emt 0:00:04]} Qe5 {[%emt 0:00:32]} 57. Qxe5 {[%emt 0:00:44]} fxe5 {[%emt 0:00:06]} 58. Kg4 {[%emt 0:00:16]} Kg6 {[%emt 0:00:16]} 59. Ne7+ {[%emt 0:00:03]} Kf7 {[%emt 0:01:21]} 60. Nc6 {[%emt 0:00:01]} Kf6 {[%emt 0:00:27]} 61. Kh5 {[%emt 0:00:03]} Ke6 {[%emt 0:00:06]} 62. Kg6 {[%emt 0:00:04]} Kd6 {[%emt 0:00:06]} 63. Kf6 {[%emt 0:00:04]} Kd7 {[%emt 0:00:15]} 64. Kxe5 {[%emt 0:00:18]} Ke8 {[%emt 0:00:13]} 65. Kf6 {[%emt 0:00:05]} Kd7 {[%emt 0:00:12]} 66. Kf5 {[%emt 0:00:25]} 1-0

[Event "48th Indian U15-ch Girls 2023"]
[Site "Jalgaon"]
[Date "2024.01.03"]
[Round "10.10"]
[White "Sahana, Shainsha"]
[Black "Ananya Raman"]
[Result "0-1"]
[ECO "A15"]
[WhiteElo "1300"]
[BlackElo "1505"]
[Annotator "NA RC"]
[PlyCount "74"]
[EventDate "2023.12.30"]
[EventType "swiss"]
[EventCountry "IND"]
[SourceTitle "playchess.com"]
[Source "ChessBase"]
[SourceQuality "1"]
[TimeControl "5400+30"]

1. b4 {[%emt 0:00:30]} e5 {[%emt 0:00:30]} 2. Bb2 {[%emt 0:00:30]} d6 {[%emt 0:00:30]} 3. c4 {[%emt 0:00:30]} Nf6 {[%emt 0:00:30]} 4. e3 {[%emt 0:00:30]} g6 {[%emt 0:00:30]} 5. d3 {[%emt 0:00:30]} Bg7 {[%emt 0:00:30]} 6. Nf3 {[%emt 0:00:30]} O-O {[%emt 0:00:30]} 7. Be2 {[%emt 0:00:30]} Nbd7 {[%emt 0:00:30]} 8. Nbd2 {[%emt 0:00:30]} a5 {[%emt 0:00:30]} 9. a3 {[%emt 0:00:30]} Ne8 {[%emt 0:00:30]} 10. O-O {[%emt 0:00:30]} e4 {[%emt 0:00:30]} 11. Bxg7 {[%emt 0:00:30]} exf3 {[%emt 0:00:30]} 12. Bxf8 {[%emt 0:00:30]} fxe2 {[%emt 0:00:30]} 13. Qxe2 {[%emt 0:00:30]} Nxf8 {[%emt 0:00:30]} 14. e4 {[%emt 0:00:30]} Qf6 {[%emt 0:00:30]} 15. b5 {[%emt 0:00:30]} Ne6 {[%emt 0:00:30]} 16. Rae1 {[%emt 0:00:30]} Nd4 {[%emt 0:00:30]} 17. Qd1 {[%emt 0:00:30]} Qg5 {[%emt 0:00:30]} 18. Kh1 {[%emt 0:00:30]} a4 {[%emt 0:00:30]} 19. Nb1 {[%emt 0:00:30]} Ng7 {[%emt 0:00:30]} 20. f4 {[%emt 0:00:30]} Qc5 {[%emt 0:00:30]} 21. e5 {[%emt 0:00:30]} h5 {[%emt 0:00:30]} 22. h3 {[%emt 0:00:30]} h4 {[%emt 0:00:30]} 23. Nc3 {[%emt 0:00:30]} Nh5 {[%emt 0:00:30]} 24. Ne4 {[%emt 0:00:30]} Qxa3 {[%emt 0:00:30]} 25. Nf6+ {[%emt 0:00:30]} Nxf6 {[%emt 0:00:30]} 26. exf6 {[%emt 0:00:30]} Be6 {[%emt 0:00:30]} 27. f5 {[%emt 0:00:30]} Nxf5 {[%emt 0:00:30]} 28. Rxf5 {[%emt 0:00:30]} Bxf5 {[%emt 0:00:30]} 29. Qd2 {[%emt 0:00:30]} d5 {[%emt 0:00:30]} 30. Qh6 {[%emt 0:00:30]} Qf8 {[%emt 0:00:30]} 31. Qxh4 {[%emt 0:00:30]} a3 {[%emt 0:00:30]} 32. cxd5 {[%emt 0:00:30]} a2 {[%emt 0:00:30]} 33. Ra1 {[%emt 0:00:30]} Bxd3 {[%emt 0:00:30]} 34. Qg3 {[%emt 0:00:30]} Bb1 {[%emt 0:00:30]} 35. Qxc7 {[%emt 0:00:30]} Re8 {[%emt 0:00:30]} 36. d6 {[%emt 0:00:30]} Rc8 {[%emt 0:00:30]} 37. Qe7 {[%emt 0:00:30]} Qh6 {[%emt 0:00:30]} 0-1